fUSD/lending_fUSD_20241222
["ID","MTS","AMOUNT","RATE_DAILY","PERIOD"]
[346275448,1734858638153,-500.0,0.00019178,2]
[346275449,1734858638162,-500.0,0.00019178,2]
[346275450,1734858638172,-945.04,0.00019178,2]
[346275451,1734858638181,-500.0,0.00019178,2]
[346275452,1734858638191,-663.33,0.00019178,2]
[346275453,1734858638200,-1104.21,0.00019178,2]
[346275454,1734858638210,-307.36,0.00019178,2]
[346275456,1734858638219,-500.0,0.00019178,2]
[346275457,1734858638231,-713.65,0.00019178,2]
[346275458,1734858638241,-743.26,0.00019178,2]
[346275459,1734858638251,-1143.16,0.00019178,2]
[346275460,1734858638259,-763.74,0.00019178,2]
[346275461,1734858638268,-2725.23,0.00019178,2]
[346275462,1734858638278,-500.0,0.00019178,2]
[346275463,1734858638287,-500.0,0.00019178,2]
[346275464,1734858638297,-1216.6,0.00019178,2]
[346275465,1734858638306,-826.51,0.00019178,2]
[346275466,1734858638315,-500.0,0.00019178,2]
[346275467,1734858638324,-7434.26,0.00019178,2]
[346275469,1734858638334,-1843.58,0.00019178,2]
[346275470,1734858638343,-500.0,0.00019178,2]
[346275472,1734858638354,-7649.05,0.00019178,2]
[346275474,1734858638363,-810.29,0.00019178,2]
[346275476,1734858638372,-1593.49,0.00019178,2]
[346275478,1734858638382,-544.95,0.00019178,2]
[346275480,1734858638391,-2903.38,0.00019178,2]
[346275482,1734858638400,-500.0,0.00019178,2]
[346275484,1734858638410,-881.2,0.00019178,2]
[346275486,1734858638419,-538.49,0.00019178,2]
[346275488,1734858638429,-1733.4,0.00019178,2]
[346275490,1734858638440,-500.0,0.00019178,2]
[346275492,1734858638449,-2712.57,0.00019178,2]
[346275494,1734858638458,-15389.88,0.00019178,2]
[346275496,1734858638467,-544.55,0.00019178,2]
[346275498,1734858638480,-572.55,0.00019178,2]
[346275501,1734858638489,-857.55,0.00019178,2]
[346275502,1734858638498,-500.0,0.00019178,2]
[346275504,1734858638507,-1555.86,0.00019178,2]
[346275507,1734858638517,-872.79,0.00019178,2]
[346275509,1734858638526,-500.0,0.00019178,2]
[346275510,1734858638535,-2662.0,0.00019178,2]
[346275512,1734858638545,-782.68,0.00019178,2]
[346275514,1734858638554,-500.0,0.00019178,2]
[346275516,1734858638563,-25397.68,0.00019178,2]
[346275518,1734858638572,-500.0,0.00019178,2]
[346275520,1734858638582,-500.0,0.00019178,2]
[346275522,1734858638590,-2582.42,0.00019178,2]
[346275524,1734858638599,-500.0,0.00019178,2]
[346275526,1734858638609,-500.0,0.00019178,2]
[346275528,1734858638619,-780.91,0.00019178,2]
[346275530,1734858638628,-500.0,0.00019178,2]
[346275532,1734858638637,-500.0,0.00019178,2]
[346275534,1734858638647,-2606.0,0.00019178,2]
[346275535,1734858638656,-500.0,0.00019178,2]
[346275536,1734858638665,-766.39,0.00019178,2]
[346275537,1734858638675,-11095.85,0.00019178,2]
[346275538,1734858638684,-1252.44,0.00019178,2]
[346275539,1734858638694,-592.49,0.00019178,2]
[346275540,1734858638703,-3153.64,0.00019178,2]
[346275541,1734858638712,-1118.91,0.00019178,2]
[346275542,1734858638722,-1305.79,0.00019178,2]
[346275543,1734858638731,-2653.57,0.00019178,2]
[346275544,1734858638740,-239.38282726,0.00019178,2]
[346275545,1734858638750,-644.31351473,0.00019178,2]
[346275546,1734858638759,-500.0,0.00019178,2]
[346275547,1734858638769,-500.0,0.00019178,2]
[346275548,1734858638786,-2549.33,0.00019178,2]
[346275549,1734858638795,-1391.38,0.00019178,2]
[346275550,1734858638805,-500.0,0.00019178,2]
[346275551,1734858638816,-500.0,0.00019178,2]
[346275552,1734858638825,-500.0,0.00019178,2]
[346275553,1734858638835,-500.0,0.00019178,2]
[346275554,1734858638843,-500.0,0.00019178,2]
[346275555,1734858638856,-3635.31,0.00019178,2]
[346275556,1734858638865,-2161.96,0.00019178,2]
[346275557,1734858638878,-813.98,0.00019178,2]
[346275558,1734858638887,-500.0,0.00019178,2]
[346275559,1734858638896,-500.0,0.00019178,2]
[346275560,1734858638905,-4150.33,0.00019178,2]
[346275561,1734858638914,-319.04714169,0.00019178,2]
[346275562,1734858638924,-675.54,0.00019178,2]
[346275563,1734858638933,-7047.57,0.00019178,2]
[346275564,1734858638943,-500.0,0.00019178,2]
[346275565,1734858638952,-500.0,0.00019178,2]
[346275566,1734858638962,-669.74,0.00019178,2]
[346275567,1734858638971,-1008.34,0.00019178,2]
[346275568,1734858638980,-1897.48,0.00019178,2]
[346275569,1734858638990,-550.46,0.00019178,2]
[346275570,1734858638999,-491.27201369,0.00019178,2]
[346275571,1734858639008,-1277.25,0.00019178,2]
[346275572,1734858639018,-500.0,0.00019178,2]
[346275573,1734858639027,-500.0,0.00019178,2]
[346275574,1734858639036,-500.0,0.00019178,2]
[346275575,1734858639046,-837.58,0.00019178,2]
[346275576,1734858639056,-500.0,0.00019178,2]
[346275577,1734858639065,-500.0,0.00019178,2]
[346275578,1734858639074,-1286.17,0.00019178,2]
[346275579,1734858639083,-500.0,0.00019178,2]
[346275580,1734858639092,-500.0,0.00019178,2]
[346275581,1734858639101,-500.0,0.00019178,2]
[346275582,1734858639110,-631.01,0.00019178,2]
[346275583,1734858639119,-500.0,0.00019178,2]
[346275584,1734858639128,-500.0,0.00019178,2]
[346275585,1734858639137,-500.0,0.00019178,2]
[346275586,1734858639148,-1000.0,0.00019178,2]
[346275587,1734858639157,-500.0,0.00019178,2]
[346275588,1734858639166,-500.0,0.00019178,2]
[346275589,1734858639176,-23958.68,0.00019178,2]
[346275590,1734858639186,-500.0,0.00019178,2]
[346275591,1734858639195,-752.94,0.00019178,2]
[346275592,1734858639205,-516.91,0.00019178,2]
[346275593,1734858639214,-500.0,0.00019178,2]
[346275594,1734858639224,-1138.42,0.00019178,2]
[346275595,1734858639234,-500.0,0.00019178,2]
[346275596,1734858639243,-509.91,0.00019178,2]
[346275597,1734858639252,-235.78,0.00019178,2]
[346275598,1734858639261,-977.18,0.00019178,2]
[346275599,1734858639271,-731.98,0.00019178,2]
[346275600,1734858639280,-151.7,0.00019178,2]
[346275601,1734858639291,-150.0,0.00019178,2]
[346275602,1734858639300,-977.18,0.00019178,2]
[346275603,1734858639309,-479.27,0.00019178,2]
[346275604,1734858639318,-8400.77869432,0.00019261,2]
[346275605,1734858639329,-155.78,0.00019329,2]
[346275606,1734858639348,-264.93,0.00019329,2]
[346275607,1734858639358,-500.0,0.00019336,2]
[346275608,1734858639368,-1520.26,0.00019339,2]
[346275609,1734858639378,-4214.28,0.00019339,2]
[346275610,1734858639392,-9999.99,0.00019339,2]
[346275611,1734858639402,-9999.99,0.00019339,2]
[346275612,1734858639414,-150.99,0.00019339,2]
[346275613,1734858639423,-2529.0,0.00019339,2]
[346275614,1734858639434,-2985.42,0.00019339,2]
[346275615,1734858639444,-291.28,0.00019339,2]
[346275616,1734858639454,-1439.83,0.00019339,2]
[346275617,1734858639464,-999.99,0.00019339,2]
[346275618,1734858639474,-111808.8,0.00019339,2]
[346275619,1734858639484,-150.99,0.00019339,2]
[346275620,1734858639493,-3587.34,0.00019339,2]
[346275622,1734858639503,-9999.99,0.00019339,2]
[346275623,1734858639512,-1308.87,0.00019339,2]
[346275624,1734858639522,-807.53,0.00019339,2]
[346275625,1734858639531,-27702.89,0.00019339,2]
[346275626,1734858639541,-4433.69279629,0.00019352,2]
[346275627,1734858639853,-500.0,0.00019178,2]
[346275628,1734858639863,-500.0,0.00019178,2]
[346275629,1734858639872,-3967.08589803,0.00019352,2]
[346275630,1734858639882,-9527.71662833,0.00019352,2]
[346275631,1734858639893,-960.0,0.00019352,2]
[346275632,1734858639938,-18200.0000032,0.00019352,2]
[346275633,1734858639950,-26867.28336847,0.00019352,2]
[346275634,1734858639959,-2493.24753599,0.00019404,2]
[346275635,1734858639968,-8400.77869432,0.00019443,2]
[346275636,1734858639977,-9290.92,0.0001945,2]
[346275637,1734858639986,-1286.08,0.00019451,2]
[346275638,1734858639996,-9290.92,0.00019451,2]
[346275639,1734858640006,-3785.32,0.00019451,2]
[346275640,1734858640015,-500.0,0.00019452,2]
[346275641,1734858640024,-500.0,0.00019452,2]
[346275642,1734858640034,-500.0,0.00019452,2]
[346275643,1734858640043,-500.0,0.00019452,2]
[346275644,1734858640053,-568.6527925,0.00019452,2]
[346275645,1734858640063,-500.0,0.00019452,2]
[346275646,1734858640075,-500.0,0.00019452,2]
[346275647,1734858640087,-500.0,0.00019452,2]
[346275648,1734858640097,-500.0,0.00019452,2]
[346275649,1734858640107,-500.0,0.00019452,2]
[346275650,1734858640116,-500.0,0.00019452,2]
[346275651,1734858640125,-328.13553378,0.00019452,2]
[346275652,1734858640136,-500.0,0.00019452,2]
[346275653,1734858640146,-384.854026,0.00019452,2]
[346275654,1734858640157,-535.790179,0.00019452,2]
[346275656,1734858640166,-500.0,0.00019452,2]
[346275658,1734858640175,-500.0,0.00019452,2]
[346275660,1734858640184,-500.0,0.00019452,2]
[346275662,1734858640194,-500.0,0.00019452,2]
[346275664,1734858640204,-500.0,0.00019452,2]
[346275666,1734858640213,-500.0,0.00019452,2]
[346275668,1734858640223,-500.0,0.00019452,2]
[346275670,1734858640232,-500.0,0.00019452,2]
[346275672,1734858640242,-500.0,0.00019452,2]
[346275674,1734858640251,-500.0,0.00019452,2]
[346275676,1734858640259,-500.0,0.00019452,2]
[346275678,1734858640269,-500.0,0.00019452,2]
[346275680,1734858640278,-500.0,0.00019452,2]
[346275682,1734858640287,-500.0,0.00019452,2]
[346275684,1734858640297,-228.42,0.00019452,2]
[346275686,1734858640308,-714.34,0.00019452,2]
[346275688,1734858640318,-574.532451,0.00019452,2]
[346275690,1734858640327,-500.0,0.00019452,2]
[346275692,1734858640337,-655.35,0.00019452,2]
[346275693,1734858640345,-500.0,0.00019452,2]
[346275695,1734858640355,-500.0,0.00019452,2]
[346275697,1734858640365,-500.0,0.00019452,2]
[346275698,1734858640374,-558.02,0.00019452,2]
[346275700,1734858640384,-500.0,0.00019452,2]
[346275702,1734858640393,-500.0,0.00019452,2]
[346275704,1734858640402,-500.0,0.00019452,2]
[346275705,1734858640411,-500.0,0.00019452,2]
[346275706,1734858640420,-500.0,0.00019452,2]
[346275707,1734858640430,-500.0,0.00019452,2]
[346275708,1734858640439,-500.0,0.00019452,2]
[346275709,1734858640448,-500.0,0.00019452,2]
[346275710,1734858640458,-500.0,0.00019452,2]
[346275711,1734858640467,-500.0,0.00019452,2]
[346275712,1734858640478,-500.0,0.00019452,2]
[346275713,1734858640487,-526.13035578,0.00019452,2]
[346275714,1734858640496,-817.27,0.00019452,2]
[346275715,1734858640506,-500.0,0.00019452,2]
[346275716,1734858640515,-500.0,0.00019452,2]
[346275717,1734858640524,-500.0,0.00019452,2]
[346275718,1734858640533,-500.0,0.00019452,2]
[346275719,1734858640543,-500.0,0.00019452,2]
[346275720,1734858640553,-500.0,0.00019452,2]
[346275721,1734858640562,-500.0,0.00019452,2]
[346275722,1734858640571,-500.0,0.00019452,2]
[346275723,1734858640581,-500.0,0.00019452,2]
[346275724,1734858640591,-500.0,0.00019452,2]
[346275725,1734858640600,-500.0,0.00019452,2]
[346275726,1734858640611,-500.0,0.00019452,2]
[346275727,1734858640619,-500.0,0.00019452,2]
[346275728,1734858640630,-500.0,0.00019452,2]
[346275729,1734858640640,-500.0,0.00019452,2]
[346275730,1734858640649,-500.0,0.00019452,2]
[346275731,1734858640660,-500.0,0.00019452,2]
[346275732,1734858640669,-500.0,0.00019452,2]
[346275733,1734858640840,-500.0,0.00019452,2]
[346275734,1734858640851,-500.0,0.00019452,2]
[346275735,1734858640862,-500.0,0.00019452,2]
[346275736,1734858640873,-549.76,0.00019452,2]
[346275737,1734858640883,-500.0,0.00019452,2]
[346275738,1734858640896,-500.0,0.00019452,2]
[346275739,1734858640905,-500.0,0.00019452,2]
[346275740,1734858640914,-1052.79,0.00019452,2]
[346275741,1734858640923,-374.90157723,0.00019452,2]
[346275742,1734858640933,-500.0,0.00019452,2]
[346275743,1734858640943,-500.0,0.00019452,2]
[346275744,1734858640952,-500.0,0.00019452,2]
[346275745,1734858640962,-506.84,0.00019452,2]
[346275746,1734858640972,-500.0,0.00019452,2]
[346275747,1734858640982,-820.06,0.00019452,2]
[346275748,1734858640991,-500.0,0.00019452,2]
[346275749,1734858641000,-500.0,0.00019452,2]
[346275750,1734858641010,-500.0,0.00019452,2]
[346275751,1734858641019,-500.0,0.00019452,2]
[346275752,1734858641028,-500.0,0.00019452,2]
[346275753,1734858641038,-558.76442875,0.00019452,2]
[346275754,1734858641047,-662.34,0.00019452,2]
[346275755,1734858641057,-1179.3,0.00019452,2]
[346275756,1734858641066,-500.0,0.00019452,2]
[346275757,1734858641076,-304.61463068,0.00019452,2]
[346275758,1734858641084,-592.43,0.00019452,2]
[346275759,1734858641095,-500.0,0.00019452,2]
[346275760,1734858641106,-500.0,0.00019452,2]
[346275761,1734858641116,-574.37,0.00019452,2]
[346275762,1734858641126,-500.0,0.00019452,2]
[346275763,1734858641135,-500.0,0.00019452,2]
[346275764,1734858641144,-500.0,0.00019452,2]
[346275765,1734858641155,-500.0,0.00019452,2]
[346275766,1734858641165,-550.96,0.00019452,2]
[346275767,1734858641176,-500.0,0.00019452,2]
[346275768,1734858641186,-500.0,0.00019452,2]
[346275769,1734858641197,-500.0,0.00019452,2]
[346275770,1734858641206,-500.0,0.00019452,2]
[346275771,1734858641219,-500.0,0.00019452,2]
[346275772,1734858641228,-500.0,0.00019452,2]
[346275773,1734858641239,-500.0,0.00019452,2]
[346275774,1734858641249,-500.0,0.00019452,2]
[346275775,1734858641259,-500.0,0.00019452,2]
[346275776,1734858641268,-500.0,0.00019452,2]
[346275777,1734858641277,-500.0,0.00019452,2]
[346275778,1734858641286,-500.0,0.00019452,2]
[346275779,1734858641295,-500.0,0.00019452,2]
[346275780,1734858641303,-865.38,0.00019452,2]
[346275781,1734858641312,-500.0,0.00019452,2]
[346275782,1734858641321,-500.0,0.00019452,2]
[346275783,1734858641333,-168.13,0.00019452,2]
[346275784,1734858641344,-786.57,0.00019452,2]
[346275785,1734858641354,-220.43513225,0.00019452,2]
[346275786,1734858641363,-500.0,0.00019452,2]
[346275787,1734858641372,-500.0,0.00019452,2]
[346275788,1734858641381,-392.09,0.00019452,2]
[346275789,1734858641390,-500.0,0.00019452,2]
[346275790,1734858641399,-500.0,0.00019452,2]
[346275791,1734858641408,-493.36886941,0.00019452,2]
[346275792,1734858641418,-554.93,0.00019452,2]
[346275793,1734858641427,-500.0,0.00019452,2]
[346275794,1734858641436,-500.0,0.00019452,2]
[346275795,1734858641446,-1069.48,0.00019452,2]
[346275796,1734858641455,-1062.61,0.00019452,2]
[346275797,1734858641464,-500.0,0.00019452,2]
[346275798,1734858641473,-899.16,0.00019452,2]
[346275799,1734858641483,-1112.89,0.00019452,2]
[346275800,1734858641492,-500.0,0.00019452,2]
[346275801,1734858641501,-637.7,0.00019452,2]
[346275802,1734858641511,-536.41,0.00019452,2]
[346275803,1734858641520,-500.0,0.00019452,2]
[346275804,1734858641530,-847.4,0.00019452,2]
[346275805,1734858641539,-500.0,0.00019452,2]
[346275806,1734858641548,-195.08,0.00019452,2]
[346275807,1734858641557,-500.0,0.00019452,2]
[346275808,1734858641566,-500.0,0.00019452,2]
[346275809,1734858641576,-3302.05,0.00019452,2]
[346275810,1734858641585,-500.0,0.00019452,2]
[346275811,1734858641594,-869.05,0.00019452,2]
[346275812,1734858641603,-500.0,0.00019452,2]
[346275813,1734858641611,-699.13,0.00019452,2]
[346275814,1734858641621,-500.0,0.00019452,2]
[346275815,1734858641630,-788.06,0.00019452,2]
[346275816,1734858641639,-500.0,0.00019452,2]
[346275817,1734858641649,-837.54,0.00019452,2]
[346275818,1734858641658,-1668.67,0.00019452,2]
[346275819,1734858641666,-500.0,0.00019452,2]
[346275820,1734858641675,-500.0,0.00019452,2]
[346275821,1734858641684,-500.0,0.00019452,2]
[346275822,1734858641693,-7656.86,0.00019452,2]
[346275823,1734858641702,-778.04,0.00019452,2]
[346275824,1734858641711,-504.15,0.00019452,2]
[346275825,1734858641720,-500.0,0.00019452,2]
[346275826,1734858641729,-1412.57,0.00019452,2]
[346275827,1734858641738,-500.0,0.00019452,2]
[346275828,1734858641747,-1279.6,0.00019452,2]
[346275829,1734858641758,-500.0,0.00019452,2]
[346275830,1734858641767,-1256.95,0.00019452,2]
[346275831,1734858641780,-10055.9,0.00019452,2]
[346275832,1734858641789,-500.0,0.00019452,2]
[346275833,1734858641803,-536.52,0.00019452,2]
[346275834,1734858641819,-635.23,0.00019452,2]
[346275835,1734858641831,-1509.68,0.00019452,2]
[346275836,1734858641841,-500.0,0.00019452,2]
[346275837,1734858641852,-642.57,0.00019452,2]
[346275838,1734858641862,-500.0,0.00019452,2]
[346275839,1734858641872,-500.0,0.00019452,2]
[346275840,1734858641882,-945.04,0.00019452,2]
[346275841,1734858641892,-500.0,0.00019452,2]
[346275842,1734858641901,-663.33,0.00019452,2]
[346275843,1734858641911,-1104.21,0.00019452,2]
[346275844,1734858641922,-500.0,0.00019452,2]
[346275845,1734858641932,-713.65,0.00019452,2]
[346275846,1734858641941,-743.26,0.00019452,2]
[346275847,1734858641951,-1143.16,0.00019452,2]
[346275848,1734858641961,-763.74,0.00019452,2]
[346275849,1734858641974,-2725.23,0.00019452,2]
[346275850,1734858641985,-500.0,0.00019452,2]
[346275851,1734858641994,-500.0,0.00019452,2]
[346275852,1734858642003,-1216.6,0.00019452,2]
[346275853,1734858642012,-826.51,0.00019452,2]
[346275854,1734858642021,-500.0,0.00019452,2]
[346275855,1734858642031,-7434.26,0.00019452,2]
[346275856,1734858642039,-1843.58,0.00019452,2]
[346275857,1734858642048,-500.0,0.00019452,2]
[346275858,1734858642057,-7649.05,0.00019452,2]
[346275859,1734858642068,-810.29,0.00019452,2]
[346275860,1734858642080,-1593.49,0.00019452,2]
[346275861,1734858642089,-544.95,0.00019452,2]
[346275862,1734858642100,-2903.38,0.00019452,2]
[346275863,1734858642110,-500.0,0.00019452,2]
[346275864,1734858642120,-881.2,0.00019452,2]
[346275865,1734858642131,-538.49,0.00019452,2]
[346275866,1734858642140,-1733.4,0.00019452,2]
[346275867,1734858642150,-2712.57,0.00019452,2]
[346275868,1734858642160,-15389.88,0.00019452,2]
[346275869,1734858642170,-572.55,0.00019452,2]
[346275870,1734858642180,-544.55,0.00019452,2]
[346275871,1734858642192,-500.0,0.00019452,2]
[346275872,1734858642202,-857.55,0.00019452,2]
[346275873,1734858642211,-1555.86,0.00019452,2]
[346275874,1734858642220,-872.79,0.00019452,2]
[346275875,1734858642231,-214.67120171,0.00019452,2]
[346275876,1734858642240,-2662.0,0.00019452,2]
[346275877,1734858642249,-782.68,0.00019452,2]
[346275878,1734858642258,-500.0,0.00019452,2]
[346275879,1734858642267,-25397.68,0.00019452,2]
[346275880,1734858642276,-500.0,0.00019452,2]
[346275881,1734858642286,-500.0,0.00019452,2]
[346275882,1734858642295,-2582.42,0.00019452,2]
[346275883,1734858642304,-500.0,0.00019452,2]
[346275884,1734858642313,-500.0,0.00019452,2]
[346275885,1734858642322,-780.91,0.00019452,2]
[346275886,1734858642331,-500.0,0.00019452,2]
[346275887,1734858642341,-500.0,0.00019452,2]
[346275888,1734858642350,-2606.0,0.00019452,2]
[346275889,1734858642359,-500.0,0.00019452,2]
[346275890,1734858642369,-766.39,0.00019452,2]
[346275891,1734858642378,-11095.85,0.00019452,2]
[346275892,1734858642387,-592.49,0.00019452,2]
[346275893,1734858642396,-1252.44,0.00019452,2]
[346275894,1734858642406,-3153.64,0.00019452,2]
[346275895,1734858642416,-1118.91,0.00019452,2]
[346275896,1734858642425,-1305.79,0.00019452,2]
[346275897,1734858642434,-2653.57,0.00019452,2]
[346275898,1734858642443,-500.0,0.00019452,2]
[346275899,1734858642453,-500.0,0.00019452,2]
[346275900,1734858642462,-2549.33,0.00019452,2]
[346275901,1734858642472,-1391.38,0.00019452,2]
[346275903,1734858642481,-500.0,0.00019452,2]
[346275904,1734858642490,-500.0,0.00019452,2]
[346275905,1734858642499,-500.0,0.00019452,2]
[346275906,1734858642508,-500.0,0.00019452,2]
[346275907,1734858642517,-543.361772,0.00019452,2]
[346275908,1734858642528,-3635.31,0.00019452,2]
[346275909,1734858642537,-2161.96,0.00019452,2]
[346275910,1734858642547,-813.98,0.00019452,2]
[346275911,1734858642556,-500.0,0.00019452,2]
[346275912,1734858642565,-500.0,0.00019452,2]
[346275913,1734858642575,-4150.33,0.00019452,2]
[346275914,1734858642584,-675.54,0.00019452,2]
[346275915,1734858642593,-7047.57,0.00019452,2]
[346275916,1734858642602,-500.0,0.00019452,2]
[346275917,1734858642612,-500.0,0.00019452,2]
[346275918,1734858642621,-669.74,0.00019452,2]
[346275919,1734858642631,-1008.34,0.00019452,2]
[346275921,1734858642642,-1897.48,0.00019452,2]
[346275923,1734858642652,-550.46,0.00019452,2]
[346275925,1734858642663,-1277.25,0.00019452,2]
[346275927,1734858642673,-500.0,0.00019452,2]
[346275929,1734858642682,-500.0,0.00019452,2]
[346275931,1734858642693,-500.0,0.00019452,2]
[346275933,1734858642702,-837.58,0.00019452,2]
[346275934,1734858642711,-500.0,0.00019452,2]
[346275936,1734858642721,-170.15,0.00019452,2]
[346275939,1734858642731,-1286.17,0.00019452,2]
[346275942,1734858642740,-500.0,0.00019452,2]
[346275944,1734858642749,-500.0,0.00019452,2]
[346275945,1734858642759,-500.0,0.00019452,2]
[346275946,1734858642768,-631.01,0.00019452,2]
[346275947,1734858642783,-500.0,0.00019452,2]
[346275948,1734858642792,-500.0,0.00019452,2]
[346275950,1734858642801,-500.0,0.00019452,2]
[346275952,1734858642812,-1000.0,0.00019452,2]
[346275953,1734858642824,-500.0,0.00019452,2]
[346275954,1734858642836,-23958.68,0.00019452,2]
[346275955,1734858642846,-500.0,0.00019452,2]
[346275956,1734858642856,-752.94,0.00019452,2]
[346275957,1734858642865,-516.91,0.00019452,2]
[346275958,1734858642875,-227.60657034,0.00019452,2]
[346275959,1734858642884,-1138.42,0.00019452,2]
[346275960,1734858642893,-500.0,0.00019452,2]
[346275961,1734858642902,-8400.77869432,0.00019535,2]
[346275962,1734858642911,-1126.28588392,0.000196,2]
[346275963,1734858642922,-1265.0,0.00019616,2]
[346275964,1734858642932,-2010.0,0.00019616,2]
[346275965,1734858642943,-150.0,0.00019616,2]
[346275966,1734858642953,-565.0,0.00019616,2]
[346275967,1734858642963,-633.0,0.00019616,2]
[346275968,1734858642973,-1898.0,0.00019616,2]
[346275969,1734858642982,-925.0,0.00019616,2]
[346275970,1734858642991,-1256.0,0.00019616,2]
[346275971,1734858643001,-818.0,0.00019616,2]
[346275972,1734858643010,-3770.0,0.00019616,2]
[346275973,1734858643020,-536.0,0.00019616,2]
[346275974,1734858643031,-3682.0,0.00019616,2]
[346275975,1734858643041,-150.0,0.00019616,2]
[346275976,1734858643051,-13756.0,0.00019616,2]
[346275977,1734858643061,-1170.0,0.00019616,2]
[346275978,1734858643070,-3886.0,0.00019616,2]
[346275979,1734858643079,-153.92662938,0.00019626,2]
[346275980,1734858643088,-8400.77869432,0.00019626,2]
[346275981,1734858643098,-8400.77869432,0.00019717,2]
[346275982,1734858643107,-1286.08,0.00019725,2]
[346275983,1734858643116,-9290.92,0.00019725,2]
[346275984,1734858643125,-3785.32,0.00019725,2]
[346275985,1734858643135,-500.0,0.00019726,2]
[346275986,1734858643144,-500.0,0.00019726,2]
[346275987,1734858643154,-500.0,0.00019726,2]
[346275988,1734858643163,-500.0,0.00019726,2]
[346275989,1734858643173,-500.0,0.00019726,2]
[346275990,1734858643182,-500.0,0.00019726,2]
[346275991,1734858643192,-500.0,0.00019726,2]
[346275992,1734858643201,-500.0,0.00019726,2]
[346275993,1734858643210,-500.0,0.00019726,2]
[346275994,1734858643219,-500.0,0.00019726,2]
[346275995,1734858643230,-403.99356861,0.00019726,2]
[346275997,1734858643239,-384.854026,0.00019726,2]
[346275998,1734858643248,-535.790179,0.00019726,2]
[346275999,1734858643257,-500.0,0.00019726,2]
[346276001,1734858643266,-500.0,0.00019726,2]
[346276003,1734858643275,-362.28875376,0.00019726,2]
[346276004,1734858643285,-500.0,0.00019726,2]
[346276005,1734858643294,-500.0,0.00019726,2]
[346276006,1734858643303,-500.0,0.00019726,2]
[346276008,1734858643313,-500.0,0.00019726,2]
[346276009,1734858643322,-500.0,0.00019726,2]
[346276010,1734858643332,-500.0,0.00019726,2]
[346276011,1734858643341,-500.0,0.00019726,2]
[346276013,1734858643351,-500.0,0.00019726,2]
[346276014,1734858643361,-500.0,0.00019726,2]
[346276015,1734858643370,-500.0,0.00019726,2]
[346276016,1734858643379,-500.0,0.00019726,2]
[346276017,1734858643389,-714.34,0.00019726,2]
[346276018,1734858643399,-500.0,0.00019726,2]
[346276019,1734858643408,-655.35,0.00019726,2]
[346276020,1734858643418,-500.0,0.00019726,2]
[346276021,1734858643427,-500.0,0.00019726,2]
[346276022,1734858643436,-500.0,0.00019726,2]
[346276023,1734858643446,-558.02,0.00019726,2]
[346276024,1734858643455,-416.17603312,0.00019726,2]
[346276025,1734858643464,-500.0,0.00019726,2]
[346276026,1734858643474,-500.0,0.00019726,2]
[346276027,1734858643483,-500.0,0.00019726,2]